Cogmind - Beta 13 @@@ ROGUE MODE // 2024.04.10 @ 00:13:01 Player: darki Result: Destroyed by G-47 Trooper with Particle Gun Performance ------------- Evolutions (2) 1000 Regions Visited (8) 1600 Robots Destroyed (94) 470 Value Destroyed (2465) 2465 Prototype IDs (3) 60 Alien Tech Used (0) 0 Bonus (419) 419 TOTAL SCORE: 6014 Bonus ------- High Alert Combat Kills 131 Follower Combat Kills 100 Entered Garrisons 200 Friendly Fire -12 Cogmind --------- Core Integrity 0/550 Matter 65/300 Energy 28/100 System Corruption 3% Temperature Cool (36) Movement Flying (31) Location -8/Garrison Parts ------- > --- POWER (1) -------- (None) > --- PROPULSION (4) --- Improved Flight Unit Improved Flight Unit Improved Flight Unit Improved Flight Unit > --- UTILITY (4) ------ Weight Redist. System > --- WEAPON (2) ------- Improved Datajack Heavy Mace > --- INVENTORY (5) ---- Small Storage Unit Improved Signal Interpreter Missile Launcher Peak State ------------ > --- POWER ------------ Deuterium Engine > --- PROPULSION ------- Light Treads Light Treads Armored Treads Armored Treads > --- UTILITY ---------- Improved Heat Sink High-capacity Storage Unit Improved Light Armor Plating Reactive Plating > --- WEAPON ----------- Precision Assault Rifle Precision Assault Rifle > --- INVENTORY -------- Heavy Ion Engine Light Treads Light Treads Improved Flight Unit Improved Flight Unit Improved Flight Unit Improved Flight Unit Improved Flight Unit Improved Flight Unit Small Storage Unit Weight Redist. System Improved Signal Interpreter Improved Light Armor Plating Precision Assault Rifle Flak Cannon Flak Cannon Missile Launcher Improved Datajack Flail Heavy Mace [Rating: 36] Favorites ----------- Power Heavy Ion Engine Engine Heavy Ion Engine Propulsion Light Treads Treads Light Treads Leg Aluminum Leg Flight Unit Improved Flight Unit Utility High-capacity Storage Unit Device High-powered Tractor Beam Storage High-capacity Storage Unit Hackware Hacking Suite Protection Light Armor Plating Weapon Flak Cannon Energy Gun Medium Laser Ballistic Gun Heavy Assault Rifle Ballistic Cannon Flak Cannon Launcher Missile Launcher Impact Weapon Heavy Mace Special Melee Weapon Improved Datajack Build | -11 -10 -10 -9 -9 -9 -8 -8 -8 ------- Run | Yrd Mat Min Mat Min Exi Min Mat Gar Slots Evolved 4 | . . . 2 . . . 2 . Power . | . . . . . . . . . Propulsion 2 | . . . . . . . 2 . Utility 2 | . . . 2 . . . . . Weapon . | . . . . . . . . . Parts Attached 63 | . 6 1 11 . . . 26 19 Power 6 | . . 1 2 . . . 1 2 Engine 6 | . . 1 2 . . . 1 2 Core . | . . . . . . . . . Reactor . | . . . . . . . . . Propulsion 22 | . . . 3 . . . 11 8 Treads 15 | . . . 2 . . . 11 2 Leg . | . . . . . . . . . Wheel . | . . . . . . . . . Hover . | . . . . . . . . . Flight 7 | . . . 1 . . . . 6 Utility 21 | . 4 . 4 . . . 9 4 Device 4 | . 1 . 1 . . . 1 1 Storage 2 | . 2 . . . . . . . Processor . | . . . . . . . . . Hackware 3 | . . . 3 . . . . . Protection 12 | . 1 . . . . . 8 3 Artifact . | . . . . . . . . . Weapon 14 | . 2 . 2 . . . 5 5 Energy Gun . | . . . . . . . . . Energy Cannon . | . . . . . . . . . Ballistic Gun 6 | . 2 . . . . . 3 1 Ballistic Cannon 4 | . . . 2 . . . 2 . Launcher 1 | . . . . . . . . 1 Special Weapon . | . . . . . . . . . Impact Weapon 2 | . . . . . . . . 2 Slashing Weapon . | . . . . . . . . . Piercing Weapon . | . . . . . . . . . Special Melee Weapon 1 | . . . . . . . . 1 Unidentified Prototypes 3 | . . . 2 . . . 1 . Parts Lost 17 | . . . 2 . . . 3 12 Power 1 | . . . . . . . . 1 Propulsion 5 | . . . . . . . 1 4 Utility 8 | . . . 2 . . . 1 5 Weapon 3 | . . . . . . . 1 2 Highest Loss Streak 5 | . . . 1 . . . 1 5 To Critical Strikes . | . . . . . . . . . Average Slot Usage (%) 94 | . 89 100 87 100 100 100 94 93 Engine 10 | . 14 14 10 11 11 11 8 8 Treads 18 | . . . 16 22 22 22 31 30 Leg 7 | . 28 28 4 . . . . . Device 6 | . . . 3 11 11 11 8 9 Storage 10 | . 14 14 11 11 11 11 9 7 Hackware 9 | . . . 16 22 22 22 4 . Protection 6 | . 3 14 . . . . 13 14 Ballistic Gun 10 | . 25 28 6 . . . 3 13 Ballistic Cannon 11 | . . . 15 22 22 22 14 . Naked Turns . | . . . . . . . . . Heaviest Build 80 | 13 54 54 61 61 61 61 80 64 Greatest Support 80 | 20 20 20 40 40 40 40 80 80 Greatest Overweight (x) 2 | . 2 2 2 1 1 1 1 1 Average Overweight (x) . | . 1 2 1 1 1 1 . . Largest Inventory Capacity 20 | . 20 20 20 20 20 20 20 20 Average Capacity 19 | . 16 20 20 20 20 20 20 18 Most Carried 20 | . 11 12 20 20 20 20 20 20 Average Carried 16 | . 8 11 18 20 20 20 19 17 Final Capacity 20 | 8 20 20 20 20 20 20 20 5 Final Carried 20 | 6 11 12 20 20 20 20 20 3 Class Distribution -------------------- 40% | Hacker-Mutant 38% | Mutant 20% | Scavenger-Mutant Dominant Class ---------------- Mutant | -10/Materials Mutant | -10/Mines Hacker-Mutant | -9/Materials Hacker-Mutant | -9/Mines Hacker-Mutant | -9/Exiles Hacker-Mutant | -8/Mines Scavenger-Mutant | -8/Materials Scavenger-Mutant | -8/Garrison Resources | -11 -10 -10 -9 -9 -9 -8 -8 -8 ----------- Run | Yrd Mat Min Mat Min Exi Min Mat Gar Matter Collected 2331 | 200 226 87 314 . . 72 1182 250 Remotely 1159 | . . . 68 . . 72 1019 . Salvage Created 2848 | . 420 87 464 . . 85 1315 477 Parts 181 | . 34 16 28 . . 1 78 24 Haulers Intercepted 10 | . 2 . 3 . . . 5 . Recyclers Shooed 1 | . . . . . . . 1 . Parts Field Recycled . | . . . . . . . . . Retrieved Matter . | . . . . . . . . . Parts Self-Destructed . | . . . . . . . . . Prevented . | . . . . . . . . . Kills | -11 -10 -10 -9 -9 -9 -8 -8 -8 ------- Run | Yrd Mat Min Mat Min Exi Min Mat Gar Combat Hostiles Destroyed 73 | . 11 6 9 . . 3 29 15 Guns 45 | . 11 6 4 . . . 10 14 Cannons 27 | . . . 5 . . 3 19 . AOE 1 | . . . . . . . . 1 Classes Destroyed 9 | . 4 . 3 . . . 2 . Worker 2 | . . . 1 . . . 1 . Builder 1 | . . . . . . . 1 . Hauler 10 | . 2 . 3 . . . 5 . Recycler 4 | . . . 1 . . . 3 . Operator 2 | . 1 . . . . . 1 . Watcher 2 | . . . . . . . 2 . Swarmer 29 | . 6 6 4 . . . 6 7 Grunt 31 | . 5 . 1 . . 3 15 7 Sentry 13 | . . . 4 . . . 8 1 Best Kill Streak 9 | . 3 3 3 . . 3 9 4 Combat Bots Only 8 | . 3 3 2 . . 3 8 4 Max Kills in Single Turn 2 | . 2 1 2 . . 1 2 1 Gunslinging 1 | . 1 . 1 . . . . . Exploded 1 | . . . . . . . . 1 Melee . | . . . . . . . . . Uniques/NPCs Destroyed . | . . . . . . . . . Combat | -11 -10 -10 -9 -9 -9 -8 -8 -8 -------- Run | Yrd Mat Min Mat Min Exi Min Mat Gar Hostile Shots Fired 484 | . 33 34 29 . . 8 131 249 Missed 127 | . 12 10 8 . . 1 28 68 Damage Taken 5041 | . 192 187 255 . . 130 1486 2791 Core 719 | . 35 33 60 . . 38 93 460 Absorbed by Shields 21 | . . . . . . . . 21 Ignored by Resistances 35 | . . . . . . . 35 . Core Remaining (%) 82 | 100 . 72 . . . 75 . . Volleys Fired 200 | . 36 13 24 . . 6 82 39 Largest 2 | . 2 2 2 . . 2 2 2 Hottest 88 | . 70 46 88 . . 88 88 64 Shots Fired 396 | . 72 26 48 . . 12 163 75 Gun 243 | . 72 26 26 . . . 48 71 Cannon 149 | . . . 22 . . 12 115 . Launcher 4 | . . . . . . . . 4 Special . | . . . . . . . . . Kinetic 382 | . 62 26 48 . . 12 163 71 Thermal 10 | . 10 . . . . . . . Explosive 4 | . . . . . . . . 4 Electromagnetic . | . . . . . . . . . Robot Hit Streak 20 | . 10 4 7 . . 8 20 13 Robot Miss Streak 7 | . 2 6 6 . . 4 7 1 Penetration Max . | . . . . . . . . . Secondary Targets 7 | . 1 2 1 . . . . 3 Max Gunslinging Chain 1 | . 1 1 1 . . . . 1 Shots Hit Robots 305 | . 46 10 34 . . 9 136 70 Core Hits 242 | . 21 6 28 . . 18 140 29 Critical Kills . | . . . . . . . . . Critical Parts Destroyed 1 | . . 1 . . . . . . Critical Strikes 1 | . . 1 . . . . . . Destroy 1 | . . 1 . . . . . . Melee Attacks 7 | . . . . . . . . 7 Impact . | . . . . . . . . . Slashing . | . . . . . . . . . Piercing . | . . . . . . . . . Sneak Attacks 7 | . . . . . . . . 7 Combat Hostiles . | . . . . . . . . . Follow-up Attacks . | . . . . . . . . . Damage Inflicted 5999 | . 645 158 637 . . 252 2748 1559 Guns 3125 | . 645 158 233 . . . 800 1289 Cannons 2603 | . . . 403 . . 252 1948 . Explosions 270 | . . . . . . . . 270 Melee . | . . . . . . . . . Ramming 1 | . . . 1 . . . . . Kinetic 5664 | . 581 158 636 . . 252 2748 1289 Thermal 64 | . 64 . . . . . . . Explosive 270 | . . . . . . . . 270 Electromagnetic . | . . . . . . . . . Impact . | . . . . . . . . . Slashing . | . . . . . . . . . Piercing . | . . . . . . . . . Highest Corruption 3 | . . . . . . . 3 3 Average Corruption 2 | . . . . . . . 1 3 Corruption Purged . | . . . . . . . . . Corruption Blocked . | . . . . . . . . . Effects 21 | . . . . . . . 8 13 Message Errors 4 | . . . . . . . . 4 Matter Fused 4 | . . . . . . . 3 1 Heat Flow Errors 3 | . . . . . . . 1 2 Energy Discharges 3 | . . . . . . . 3 . Parts Rejected 2 | . . . . . . . . 2 Data Loss (minor) 3 | . . . . . . . 1 2 Data Loss (major) 1 | . . . . . . . . 1 Weapon Failures 1 | . . . . . . . . 1 Overload Shots . | . . . . . . . . . Overflow Damage 3 | . . . . . . . . 3 Projectiles . | . . . . . . . . . Explosions 3 | . . . . . . . . 3 Melee . | . . . . . . . . . Knockbacks 65 | . . . 7 . . 4 54 . Impact . | . . . . . . . . . Kinetic 57 | . . . 7 . . 3 47 . Secondary 8 | . . . . . . 1 7 . Self-Inflicted Damage . | . . . . . . . . . Shots . | . . . . . . . . . Rammed . | . . . . . . . . . Targets Rammed 1 | . . . 1 . . . . . Kicked 1 | . . . 1 . . . . . Crushed . | . . . . . . . . . Highest Temperature 375 | . 80 . 51 . . 198 375 259 Average Temperature 76 | . 29 . 19 . . 104 85 85 Received Heat Transfer 1805 | . 36 . 63 . . 81 729 896 Effects 2 | . . . . . . . 2 . Energy Bleed 1 | . . . . . . . 1 . Matter Decay 1 | . . . . . . . 1 . Siege Activations . | . . . . . . . . . Robots Corrupted . | . . . . . . . . . Combat Hostiles . | . . . . . . . . . Parts Fried . | . . . . . . . . . Impact Corruptions . | . . . . . . . . . Robots Melted . | . . . . . . . . . Combat Hostiles . | . . . . . . . . . Parts Melted 2 | . . . 2 . . . . . Heat Transferred 185 | . 185 . . . . . . . Parts Sabotaged . | . . . . . . . . . Parts Stolen . | . . . . . . . . . Parts Stripped . | . . . . . . . . . Power Chain Reactions . | . . . . . . . . . Alert | -11 -10 -10 -9 -9 -9 -8 -8 -8 ------- Run | Yrd Mat Min Mat Min Exi Min Mat Gar Peak Influence 709 | . 151 239 418 75 . 70 467 709 Initial 303 | . . 39 . 75 . . 27 303 Average 179 | . 58 126 211 38 . 52 200 500 Maximum Alert Level 3 | . . 1 2 . . . 2 3 Low Security (%) 63 | . 100 62 53 100 . 100 54 . Level 1 28 | . . 37 45 . . . 42 34 Level 2 7 | . . . 1 . . . 2 65 Level 3 . | . . . . . . . . . Level 4 . | . . . . . . . . . Level 5 . | . . . . . . . . . High Security . | . . . . . . . . . Max Security . | . . . . . . . . . Squads Dispatched 8 | . 3 . 1 . . . 4 . Investigation 1 | . 1 . . . . . . . Extermination . | . . . . . . . . . Reinforcement 6 | . 2 . 1 . . . 3 . Assault . | . . . . . . . . . Garrison 1 | . . . . . . . 1 . Intercept . | . . . . . . . . . Searches Triggered . | . . . . . . . . . Construction Impeded . | . . . . . . . . . Haulers Reinforced . | . . . . . . . . . Active Scanning Responses . | . . . . . . . . . Cargo Convoy Interrupts . | . . . . . . . . . Stealth | -11 -10 -10 -9 -9 -9 -8 -8 -8 --------- Run | Yrd Mat Min Mat Min Exi Min Mat Gar Distress Signals 6 | . . . 2 . . . 4 . Communications Jammed . | . . . . . . . . . Distress Signals . | . . . . . . . . . Times Spotted 120 | . 22 6 19 . . 3 41 29 Peak Tracking Total 8 | . 3 3 6 . . 3 4 8 Tactical Retreats 5 | . 1 . 1 . . . . 3 Traps | -11 -10 -10 -9 -9 -9 -8 -8 -8 ------- Run | Yrd Mat Min Mat Min Exi Min Mat Gar Traps Triggered 7 | . 1 . . . . . 4 2 Indirectly . | . . . . . . . . . Trap Hack Attempts . | . . . . . . . . . Triggered . | . . . . . . . . . Disarmed . | . . . . . . . . . Reprogrammed . | . . . . . . . . . Reused . | . . . . . . . . . Traps Extracted . | . . . . . . . . . Installed . | . . . . . . . . . Triggered . | . . . . . . . . . Machines | -11 -10 -10 -9 -9 -9 -8 -8 -8 ---------- Run | Yrd Mat Min Mat Min Exi Min Mat Gar Machines Disabled 5 | . . 4 . . . . 1 . Max in Single Turn 2 | . . 2 . . . . 1 . Garrison Relay 1 | . . . . . . . . 1 Machines Repaired . | . . . . . . . . . Machines Dismantled . | . . . . . . . . . Machines Sabotaged . | . . . . . . . . . Overloaded Fab Kills . | . . . . . . . . . Hacking | -11 -10 -10 -9 -9 -9 -8 -8 -8 --------- Run | Yrd Mat Min Mat Min Exi Min Mat Gar Machines Accessed 13 | . 1 . 3 . 1 . 6 2 Terminals 11 | . 1 . 3 . . . 5 2 Fabricators . | . . . . . . . . . Repair Stations . | . . . . . . . . . Recycling Units . | . . . . . . . . . Scanalyzers . | . . . . . . . . . Garrison Access 1 | . . . . . . . 1 . Total Hacks 31 | . 1 . 10 . 4 . 13 3 Successful 18 | . . . 8 . 4 . 6 . Failed 13 | . 1 . 2 . . . 7 3 Catastrophic 5 | . . . . . . . 2 3 Database Lockouts . | . . . . . . . . . Manual 23 | . . . 10 . . . 13 . Terminals 26 | . 1 . 10 . . . 12 3 Fabricators . | . . . . . . . . . Repair Stations . | . . . . . . . . . Recycling Units . | . . . . . . . . . Scanalyzers . | . . . . . . . . . Garrison Access 1 | . . . . . . . 1 . Terminal Hacks 9 | . . . 5 . 4 . . . Record 4 | . . . . . 4 . . . Robot Analysis 4 | . . . 4 . . . . . Registered Components 1 | . . . 1 . . . . . Fabricator Hacks . | . . . . . . . . . Repair Station Hacks . | . . . . . . . . . Recycling Unit Hacks . | . . . . . . . . . Scanalyzer . | . . . . . . . . . Garrison Access Hacks 1 | . . . . . . . 1 . Unlock Access 1 | . . . . . . . 1 . Unauthorized Hacks 8 | . . . 3 . . . 5 . Terminals 8 | . . . 3 . . . 5 . Assimilate 1 | . . . . . . . 1 . Botnet 7 | . . . 3 . . . 4 . Fabricators . | . . . . . . . . . Repair Stations . | . . . . . . . . . Recycling Units . | . . . . . . . . . Scanalyzers . | . . . . . . . . . Garrison Access . | . . . . . . . . . Data Cores Recovered . | . . . . . . . . . Used . | . . . . . . . . . Hacking Detections 11 | . 1 . 3 . . . 5 2 Full Trace Events 2 | . . . 1 . . . 1 . Feedback Events 1 | . . . 1 . . . . . Hackware Fried 1 | . . . 1 . . . . . Feedback Blocked . | . . . . . . . . . Robot Schematics Acquired . | . . . . . . . . . Robots Built . | . . . . . . . . . Authchips . | . . . . . . . . . Time . | . . . . . . . . . Total Robot Build Rating . | . . . . . . . . . Part Schematics Acquired . | . . . . . . . . . Parts Built . | . . . . . . . . . Authchips . | . . . . . . . . . Time . | . . . . . . . . . Total Part Build Rating . | . . . . . . . . . Parts Repaired . | . . . . . . . . . Time . | . . . . . . . . . Parts Recycled . | . . . . . . . . . Recycled Matter . | . . . . . . . . . Retrieved Matter . | . . . . . . . . . Retrieved Components . | . . . . . . . . . Parts Scanalyzed . | . . . . . . . . . Part Schematics Acquired . | . . . . . . . . . Parts Damaged . | . . . . . . . . . Bothacking | -11 -10 -10 -9 -9 -9 -8 -8 -8 ------------ Run | Yrd Mat Min Mat Min Exi Min Mat Gar Used RIF Installer . | . . . . . . . . . Robots Hacked . | . . . . . . . . . Non-combat . | . . . . . . . . . Combat . | . . . . . . . . . Robot Hacks Applied . | . . . . . . . . . Relay Couplers Released 4 | . . . . . . . . 4 Machine Destruction 4 | . . . . . . . . 4 Fabnet Peak Effective % . | . . . . . . . . . Robots Rewired 4 | . . . . . . . . 4 Allies Hacked . | . . . . . . . . . Hacks Repelled . | . . . . . . . . . Allies | -11 -10 -10 -9 -9 -9 -8 -8 -8 -------- Run | Yrd Mat Min Mat Min Exi Min Mat Gar Total Allies 7 | . . 3 . . . . . 4 Largest Group 3 | . . 3 3 1 1 1 . 3 Highest-Rated Group 63 | . . 40 40 16 16 16 . 63 Highest-Rated Ally 21 | . . 16 16 16 16 16 . 21 Total Orders . | . . . . . . . . . Ally Attacks 55 | . . . 45 . . 1 . 9 Total Damage 626 | . . . 445 . . 16 . 165 Kills 11 | . . . 11 . . . . . Allies Corrupted . | . . . . . . . . . Allies Melted . | . . . . . . . . . Intel | -11 -10 -10 -9 -9 -9 -8 -8 -8 ------- Run | Yrd Mat Min Mat Min Exi Min Mat Gar Robot Analysis Total 4 | . . . 4 . . . . . Derelict Logs Recovered 3 | . . 2 . 1 . . . . Drone Launches . | . . . . . . . . . Drone Recoveries . | . . . . . . . . . Exploration | -11 -10 -10 -9 -9 -9 -8 -8 -8 ------------- Run | Yrd Mat Min Mat Min Exi Min Mat Gar Turns Passed 7706 | . 1114 808 1491 781 658 285 1825 744 Spaces Moved 3334 | 1 484 296 551 322 275 111 798 496 Core 1 | . . . . . . . . 1 Treads 2251 | . . . 441 322 275 111 798 304 Legs 891 | 1 484 296 110 . . . . . Wheels . | . . . . . . . . . Hover . | . . . . . . . . . Flight 191 | . . . . . . . . 191 Fastest Speed 31 | 120 120 260 240 240 240 240 160 31 Average Speed 201 | 120 196 260 243 240 240 240 176 113 Slowest Speed 260 | 120 260 260 260 240 240 240 240 166 Overloaded Moves . | . . . . . . . . . Propulsion Burnouts . | . . . . . . . . . Robots Hopped 5 | . . . . . . . . 5 Cave-ins Triggered . | . . . . . . . . . Exploration Rate (%) 57 | 2 91 74 47 81 55 37 74 60 Regions Visited 8 Branch Regions 4 Pre-discovered Areas 3 | . . 1 . 1 1 . . . Known Exits Taken 2 | . . . . . . 1 1 . Unknown Exits Taken 6 | 1 1 1 1 1 1 . . . Scrap Searched 2 | . . . . 1 . 1 . . Spaces Dug . | . . . . . . . . . Terrain Destroyed 18 | . . . . . . . . 18 Melee . | . . . . . . . . . Projectile . | . . . . . . . . . AOE 18 | . . . . . . . . 18 Terrain Rammed . | . . . . . . . . . Walls Destroyed . | . . . . . . . . . Machines Disabled . | . . . . . . . . . Actions | -11 -10 -10 -9 -9 -9 -8 -8 -8 --------- Run | Yrd Mat Min Mat Min Exi Min Mat Gar Total 3931 | . 581 309 655 331 274 119 1063 599 Wait 212 | . 32 . 29 10 . 3 128 10 Move 3317 | . 483 295 550 321 274 110 797 487 Hop 4 | . . . . . . . . 4 Pick Up 38 | . 11 . 21 . . . 6 . Fast Attach 29 | . 6 . 8 . . . 12 3 Attach 16 | . . . 1 . . . 1 14 Detach 6 | . 2 . 1 . . . 1 2 Swap 19 | . . 1 2 . . . 13 3 Drop 61 | . 11 . 18 . . . 23 9 Fire 200 | . 36 13 24 . . 6 82 39 Melee 7 | . . . . . . . . 7 Ram . | . . . . . . . . . Kick 1 | . . . 1 . . . . . Crush . | . . . . . . . . . Escape Stasis 21 | . . . . . . . . 21 Rewire . | . . . . . . . . . Trap . | . . . . . . . . . Miscellaneous . | . . . . . . . . . Route ------- -11/Scrapyard -10/Materials (discovered 5 exits: *Mat x3 / [*Min x2]) -10/Mines -9/Materials (discovered 3 exits: *Mat x2 / [*Min]) -9/Mines (discovered 3 exits: *Mat x2 / *Exi) -9/Exiles -8/Mines -8/Materials (discovered 2 exits: [*Fac] / Gar) -8/Garrison (discovered 3 exits: [*Mat x3]) History --------- Turn | Location | Event 1 | -11/Scrapyard | Discovered new exit (range 0) 1 | -11/Scrapyard | Entered Materials 78 | -10/Materials | Discovered new exit (range 5) 316 | -10/Materials | Build established: Mutant 385 | -10/Materials | Discovered new exit (range 3) 440 | -10/Materials | Discovered new exit (range 13) 606 | -10/Materials | Discovered new exit (range 4) 1057 | -10/Materials | Discovered new exit (range 8) 1115 | -10/Materials | Entered Mines 1309 | -10/Mines | Learned location of Zion (-6) 1746 | -10/Mines | Assisted by bots powering up and referring to "LRC-V3" 1871 | -10/Mines | Discovered new exit (range 9) 1892 | -10/Mines | Learned location of 1 exit from Materials 1923 | -10/Mines | Entered Materials 1923 | -9/Materials | Accompanied by 3 allies 1923 | -9/Materials | Evolved 2 slots: Utility x2 1924 | -9/Materials | Identified exit to Materials 2187 | -9/Materials | Discovered new exit (range 12) 2643 | -9/Materials | Hacking Suite fried by hacking feedback 2695 | -9/Materials | Build established: Hacker-Mutant 3111 | -9/Materials | Discovered exit to Materials (range 16) 3414 | -9/Materials | Entered Mines 3414 | -9/Mines | Accompanied by 1 ally 3416 | -9/Mines | Met a Derelict bent on vengeance 3458 | -9/Mines | Learned location of Recycling (-7) 3692 | -9/Mines | Discovered exit to Materials (range 9) 3889 | -9/Mines | Discovered exit to Materials (range 12) 4185 | -9/Mines | Deemed a non-threat by the Exiles lab entrance 4185 | -9/Mines | Discovered new exit (range 5) 4195 | -9/Mines | Entered Exiles 4195 | -9/Exiles | Accompanied by 1 ally 4255 | -9/Exiles | Met 8R-AWN 4296 | -9/Exiles | Met EX-HEX 4445 | -9/Exiles | Met EX-BIN 4740 | -9/Exiles | Met EX-DEC 4834 | -9/Exiles | Discovered new exit (range 10) 4853 | -9/Exiles | Entered Mines 4853 | -8/Mines | Accompanied by 1 ally 5126 | -8/Mines | Discovered exit to Materials (range 6) 5138 | -8/Mines | Entered Materials 5138 | -8/Materials | Evolved 2 slots: Propulsion x2 5601 | -8/Materials | Destroyed 8 combat bots 5705 | -8/Materials | Discovered new exit (range 11) 5930 | -8/Materials | Build established: Scavenger-Mutant 6819 | -8/Materials | Build established: Mutant 6879 | -8/Materials | Garrison activated, responded to threat 6926 | -8/Materials | Identified exit to Garrison 6963 | -8/Materials | Entered Garrison 6998 | -8/Garrison | Triggered checkpoint 7128 | -8/Garrison | Triggered checkpoint 7212 | -8/Garrison | Triggered checkpoint 7239 | -8/Garrison | Build established: Scavenger-Mutant 7300 | -8/Garrison | Triggered checkpoint 7354 | -8/Garrison | Discovered new exit (range 12) 7454 | -8/Garrison | Triggered checkpoint 7486 | -8/Garrison | Spotted B-75 Beast 7500 | -8/Garrison | Triggered checkpoint 7580 | -8/Garrison | Lost 5 parts (2n1u2w) 7605 | -8/Garrison | Core integrity fell below 50% 7617 | -8/Garrison | Discovered new exit (range 10) 7636 | -8/Garrison | Garrison Relay disabled 7640 | -8/Garrison | Triggered checkpoint 7651 | -8/Garrison | Core integrity fell below 20% 7671 | -8/Garrison | Discovered new exit (range 14) 7682 | -8/Garrison | Triggered checkpoint 7692 | -8/Garrison | Triggered checkpoint 7707 | -8/Garrison | Destroyed by G-47 Trooper with Particle Gun Last Messages --------------- 07697_ Attempting to rewire H-55 Commando. 07697_ Commando 3a destroyed. 07698_ Sneak attack on H-55 Commando. 07698_ Attempting to rewire H-55 Commando. 07699_ Penetrated by Slug. 07699_ Sneak attack on H-55 Commando. 07699_ H-55 Commando rewired. 07700_ Slug penetrates Commando 3b. 07700_ Sneak attack on H-55 Commando. 07700_ Attempting to rewire H-55 Commando. 07700_ Slug penetrates Commando 3c. 07701_ Sneak attack on H-55 Commando. 07701_ H-55 Commando rewired. 07703_ Imp. Flight Unit destroyed. 07703_ Slug penetrates Commando 3c. 07704_ System corrupted: Hvy. Mace rejected. 07704_ Acquired Hvy. Mace. 07705_ Slug penetrates Commando 3c. 07706_ Slug penetrates Commando 3d. 07707_ Slug penetrates H-55 Commando. Map ----- +----------------------------------------------------+ | | | | | | | | | | | | | | | | | | | | | | | | | | | | | ???????????????????????????????????? | | ???????????????????????????????????? | | ???????????????????????????????????? | | ???????????????????????????????????? | | ???????????????????????????????????? | | ?????????######????????????????????? | | ????######[%h #????????????????????? | | ????# ##h=h #????????????????????? | | ??### ###h###????????????????????? | | ??# gg g #?????????????????????? | | ??# #?????????????????????? | | ??### ###@ #?????????????????????? | | ???#"""""?# #?????????????????????? | | ???######?# #?????????????????????? | | ??????????# Y#?????????????????????? | | ???###????# #?????????????????????? | | ???# #??# #?????????????????????? | | ?????# ## #???????????????????? | | ???# #???????????????????? | | ????# ## #???????????????????? | | ????## ??# ###???????????????????? | | ?????##???# #?????????????????????? | | ??????????# ####################### | | ??????????# | | ??????????# | | ??????????#;######### < ######### # | | ??????????? ????????# #???????# # | | ????????????????????#####???????# # | | ????????????????????????????????# # | | ????????????????????????????????# # | | ????????????????????????????????# # | | ????????????????????????????????# # | | ????????????????????????????????# # | | ????????????????????????????????# # | | ????????????????????????????????# # | | ????????????????????????????????# # | +----------------------------------------------------+ Best States ------------- Heat Dissipation 45 Energy Generation 14 Energy Capacity 280 Matter Stores 300 Matter Capacity 300 Sight Range 16 Terrain Scan Density 10 Armor Coverage 375 Resistance: KI 20 Evasion (%) 63 Recoil Reduction 4 Offensive Hacking 30 Item Schematics ----------------- None Robot Schematics ------------------ None Fabricated ------------ Nothing Alien Tech Used ----------------- None Achievements -------------- None Challenges ------------ None Game ------ Seed GlidesysCloakCharger Manual? 0 Play Time 00:37:11 Cumulative 212.6 hours Start 2024.04.09 @ 23:36:38 End 2024.04.10 @ 00:13:01 Sessions 1 Manual Loads 0 Difficulty Rogue Special Mode None Game No. 214 Rogue 214 Adventurer 0 Explorer 0 Win Type - Total 5 Types 4/0/0/1/0/0/0/0/0 Lore% 68 Gallery% 77 Achievement% 62 Wizard Run 0 Options --------- Layout 2 ASCII 0 Keyboard 0 Movement Numpad Keybinds 0 Fullscreen 2 Font 24/Smallcaps Map View 50x44 Zoom Use 0% Tactical HUD 1 Map Filters NONE Filters NONE Steam 1 RUN: 87f20b57-d410-4150-b719-b85da486bcaa